bitfinex/quotes_ETHUSD_20250129
["timestamp","ask_amount","ask_price","bid_price","bid_amount"]
[1738158010914,6.44573,3102.9,3102.4,0.55]
[1738158011316,3.22284,3102.9,3102.4,0.55]
[1738158011845,3.22269,3103.0,3102.6,0.55]
[1738158012002,4.01672,3103.1,3102.6,0.55]
[1738158012738,7.2394,3103.1,3102.6,0.55]
[1738158012926,4.01672,3103.1,3102.6,0.55]
[1738158013741,3.22269,3103.0,3102.6,0.55]
[1738158013969,4.01672,3103.1,3102.6,0.55]
[1738158014148,3.2227,3103.0,3102.6,0.55]
[1738158014649,3.22262,3103.1,3102.6,1.3157]
[1738158015250,6.44528,3103.1,3102.6,1.3157]
[1738158015456,3.87761386,3103.3,3102.6,1.3157]
[1738158015624,3.22255,3103.2,3102.6,4.57102769]
[1738158015947,3.22255,3103.2,3102.6,5.38817686]
[1738158016952,3.2226,3103.1,3102.6,2.16507686]
[1738158017718,3.22269,3103.0,3102.6,2.13284917]
[1738158017922,3.2226,3103.1,3102.6,1.3157]
[1738158018362,3.22281,3102.9,3102.6,1.3157]
[1738158018958,3.2226,3103.1,3102.6,1.3157]
[1738158019468,3.2226,3103.1,3102.6,4.57099769]
[1738158020265,3.2226,3103.1,3102.6,5.38814186]
[1738158020565,3.22221,3103.5,3102.9,0.0075]
[1738158020763,3.22196,3103.7,3103.1,0.55]
[1738158020925,3.22214,3103.6,3103.1,3.80474272]
[1738158021125,3.22214,3103.6,3103.3,0.55]
[1738158021536,3.22214,3103.6,3103.5,0.55]
[1738158022039,3.22189,3103.8,3103.5,0.59704302]
[1738158022528,0.7781,3104.2,3103.5,0.59704302]
[1738158022879,0.7781,3105.2,3104.0,0.0075]
[1738158023025,3.22087,3104.8,3104.2,4.55068]
[1738158023226,3.22087,3104.8,3104.4,0.55]
[1738158023451,6.44131,3105.0,3104.4,3.7712]
[1738158023636,3.22044,3105.2,3104.6,0.55]
[1738158023933,3.22067,3105.0,3104.7,0.04596514]
[1738158024333,3.22044,3105.2,3104.8,0.55]
[1738158024563,3.22044,3105.2,3105.0,0.55]
[1738158024937,3.22044,3105.2,3105.1,0.59576257]
[1738158026077,3.22044,3105.2,3105.1,0.04576257]
[1738158026435,3.221,3104.7,3104.2,0.5575]
[1738158026857,3.221,3104.7,3104.4,0.55]
[1738158027277,3.221,3104.7,3104.6,0.55]
[1738158027785,3.221,3104.7,3104.6,0.59559114]
[1738158030935,0.17131141,3106.2,3104.6,0.59559114]
[1738158031141,3.22056,3105.1,3104.6,0.59559114]
[1738158031349,3.22032,3105.3,3104.8,0.55]
[1738158031670,3.22051,3105.1,3104.8,0.55]
[1738158031875,3.22051,3105.1,3105.0,0.55]
[1738158032235,3.22051,3105.1,3105.0,0.59538356]
[1738158034160,3.22013,3105.5,3105.0,0.59538356]
[1738158034567,3.22013,3105.5,3105.0,1.30227748]
[1738158035038,3.22021,3105.4,3105.0,1.30227748]
[1738158036642,3.22021,3105.4,3105.0,1.33448019]
[1738158038683,3.21992,3105.7,3105.3,0.55]
[1738158038844,3.21985,3105.8,3105.3,0.55]
[1738158039187,3.21989,3105.7,3105.5,0.55]
[1738158039576,3.21989,3105.7,3105.6,0.59422567]
[1738158040181,3.21985,3105.8,3105.7,0.55]
[1738158040576,3.21985,3105.8,3105.7,0.04417505]
[1738158041092,3.21989,3105.7,3105.4,0.55]
[1738158041391,3.21989,3105.7,3105.3,0.5575]
[1738158041992,3.21989,3105.7,3105.3,1.01899193]
[1738158042836,3.22003,3105.6,3105.3,1.01899193]
[1738158043132,0.65836194,3106.1,3104.9,0.7815]
[1738158043133,3.22032,3105.3,3104.9,0.7815]
[1738158043425,3.22056,3105.1,3104.9,0.7815]
[1738158043723,3.22056,3105.1,3105.0,0.55]
[1738158043918,6.44071,3105.3,3105.0,0.55]
[1738158044072,3.22032,3105.3,3105.0,0.55]
[1738158044271,3.21998,3105.7,3105.1,0.0075]
[1738158044511,3.21998,3105.7,3105.3,0.5575]
[1738158044898,3.21997,3105.7,3105.3,0.5575]
[1738158045489,3.21997,3105.7,3105.1,0.5575]
[1738158045689,3.21999,3105.6,3105.1,3.77799]
[1738158046013,3.21973,3105.9,3105.5,0.55]
[1738158046373,3.21961,3106.0,3105.6,0.0075]
[1738158046826,3.21961,3106.0,3105.6,0.5575]
[1738158046992,3.21952,3106.1,3105.5,0.5575]
[1738158047193,3.2199,3105.7,3105.5,0.55]
[1738158048517,3.21914,3106.5,3105.4,0.7848987]
[1738158048815,3.21916,3106.4,3106.1,0.55]
[1738158048983,3.21932,3106.3,3106.1,0.55]
[1738158049379,3.21936,3106.2,3106.1,0.55]
[1738158049601,3.21916,3106.4,3106.1,0.55]
[1738158049918,6.43841,3106.4,3106.1,0.55]
[1738158050080,3.21916,3106.4,3106.1,0.55]
[1738158050276,3.21936,3106.2,3106.1,0.55]
[1738158050510,3.21963,3106.0,3105.7,0.758]
[1738158050712,3.21976,3105.9,3105.8,0.04327582]
[1738158050912,3.21976,3105.9,3105.8,0.55]
[1738158051117,3.21976,3105.9,3105.8,0.59308621]
[1738158052298,3.21957,3106.0,3105.8,0.59308621]
[1738158052506,3.21957,3106.0,3105.9,0.55]
[1738158052818,3.21957,3106.0,3105.9,0.59314038]
[1738158054220,3.24358924,3106.0,3105.9,0.59314038]
[1738158054738,3.24358924,3106.0,3105.9,0.04314038]
[1738158054901,3.24358924,3106.0,3105.3,0.7505]
[1738158055102,3.21984,3105.8,3105.5,0.55]
[1738158055339,3.21984,3105.8,3105.7,0.55]
[1738158055523,3.21984,3105.8,3105.7,0.59324161]
[1738158060354,3.24385924,3105.8,3105.7,0.59324161]
[1738158060555,3.24385924,3105.8,3105.7,0.04324161]
[1738158060871,3.22016,3105.5,3105.1,0.55]
[1738158061219,0.02401924,3105.4,3104.7,0.7651]
[1738158061421,0.785,3105.5,3104.7,3.98599]
[1738158061642,0.785,3105.5,3104.7,0.7651]
[1738158061849,0.02401924,3105.4,3104.7,0.7651]
[1738158062031,0.785,3105.5,3104.8,0.55]
[1738158062449,0.8062,3105.8,3105.0,0.55]
[1738158062764,0.8062,3105.8,3105.2,3.77033]
[1738158063561,0.8062,3105.8,3105.2,4.469421]
[1738158063763,0.02401924,3106.0,3105.5,0.55]
[1738158063964,0.815,3106.1,3105.8,0.55]
[1738158064261,0.7851,3106.4,3105.9,0.55]
[1738158064435,0.7851,3106.7,3106.2,0.55]
[1738158064837,1.46312115,3107.0,3106.4,3.21909]
[1738158065145,0.8049,3107.0,3106.7,0.55]
[1738158065759,0.8049,3107.0,3106.8,0.04284482]
[1738158065958,0.7875,3107.3,3106.8,3.26150482]
[1738158066163,0.7875,3107.3,3106.9,3.76863]
[1738158066332,0.7875,3107.3,3106.9,0.55]
[1738158066529,0.7875,3107.3,3107.0,0.04273867]
[1738158067282,0.7875,3107.3,3107.1,0.55]
[1738158067652,0.7875,3107.3,3107.2,0.04247291]
[1738158068682,4.00572,3107.3,3107.2,0.04247291]
[1738158069013,3.21834,3107.2,3106.6,3.76892]
[1738158069206,0.7875,3107.3,3106.8,3.21872]
[1738158069414,0.7875,3107.3,3106.9,0.55]
[1738158069708,3.21792,3107.6,3107.1,0.55]
[1738158069709,4.03471,3107.6,3107.1,0.55]
[1738158069856,3.21815,3107.4,3106.9,0.55]
[1738158070263,0.64538574,3107.7,3107.0,0.0075]
[1738158070463,0.02401924,3107.6,3106.8,0.7726]
[1738158070686,3.21804,3107.5,3106.8,3.99132]
[1738158070913,3.21856,3107.0,3106.5,0.7868]
[1738158071109,3.24271924,3106.9,3106.2,4.00609]
[1738158071693,3.24271924,3106.9,3106.3,0.5575]
[1738158071694,3.21881,3106.8,3106.3,0.5575]
[1738158072027,3.21852,3107.1,3106.5,0.5575]
[1738158072525,6.43704,3107.1,3106.5,3.77655]
[1738158072693,3.21852,3107.1,3106.5,0.5575]
[1738158072896,3.2187,3106.9,3106.5,0.55]
[1738158073424,3.2187,3106.9,3106.3,3.77675]
[1738158074527,3.2187,3106.9,3106.3,6.99593]
[1738158074737,3.2187,3106.9,3106.5,0.55]
[1738158075038,3.2187,3106.9,3106.4,0.55]
[1738158075236,3.2187,3106.9,3106.4,3.76909]
[1738158075741,0.02401924,3107.0,3106.2,0.7868]
[1738158075952,3.21907,3106.5,3105.9,4.04406]
[1738158076092,3.21947,3106.1,3105.6,0.8244]
[1738158076293,3.21958,3106.0,3105.6,0.8244]
[1738158076547,3.21947,3106.1,3105.7,0.55]
[1738158077507,3.21929,3106.3,3105.7,0.55]
[1738158077711,3.21929,3106.3,3105.6,4.04438]
[1738158077929,3.21929,3106.3,3105.6,4.770818]
[1738158078129,3.21929,3106.3,3105.7,0.55]
[1738158078646,3.21942,3106.2,3105.7,0.55]
[1738158078994,3.21957,3106.0,3105.7,0.55]
[1738158079192,3.21968,3105.9,3105.7,0.55]
[1738158079841,3.21957,3106.0,3105.7,0.55]
[1738158080816,3.21957,3106.0,3105.8,0.04008022]
[1738158081143,3.21957,3106.0,3105.7,0.55]
[1738158081344,3.21957,3106.0,3105.8,0.04008022]
[1738158081639,3.21957,3106.0,3105.7,0.55]
[1738158081848,3.21957,3106.0,3105.9,0.04002961]
[1738158081999,3.21957,3106.0,3105.8,0.04008022]
[1738158082200,3.21957,3106.0,3105.9,0.04002961]
[1738158082639,3.21941,3106.2,3105.7,0.55]
[1738158082841,3.21949,3106.1,3105.9,0.04002961]
[1738158083097,1.44320267,3106.5,3106.0,0.58997901]
[1738158083098,3.21917,3106.4,3106.0,0.58997901]
[1738158083953,3.21946,3106.2,3106.0,0.58997901]
[1738158085120,3.21947,3106.1,3106.0,0.58997901]
[1738158085449,3.99428924,3106.1,3106.0,0.03997901]
[1738158085851,3.21993,3105.7,3105.1,3.228]
[1738158086154,3.21993,3105.7,3105.2,0.59054863]
[1738158086303,3.22009,3105.5,3105.2,0.59054863]
[1738158086632,3.22006,3105.6,3105.2,0.59054863]
[1738158087021,3.21993,3105.7,3105.2,0.59054863]
[1738158087239,6.43991,3105.7,3105.2,0.59054863]
[1738158087820,3.21993,3105.7,3105.2,0.59054863]
[1738158088021,3.21993,3105.7,3105.2,3.81093863]
[1738158088723,3.21993,3105.7,3105.2,4.59629349]
[1738158088919,3.21993,3105.7,3105.2,1.37590349]
[1738158089136,3.21994,3105.7,3105.2,1.37590349]
[1738158089456,3.21994,3105.7,3105.2,0.59054863]
[1738158089668,3.2203,3105.3,3105.2,0.04054863]
[1738158089949,3.2203,3105.3,3105.0,0.8147]
[1738158090103,3.2203,3105.3,3105.1,0.58956644]
[1738158090720,3.2204,3105.2,3105.1,0.58956644]
[1738158091260,3.2203,3105.3,3105.1,0.58956644]
[1738158092364,3.22013,3105.5,3105.1,0.58956644]
[1738158092863,3.21989,3105.7,3105.3,0.55]
[1738158093081,3.22001,3105.6,3105.3,0.55]
[1738158093284,0.02401924,3105.5,3105.0,0.5575]
[1738158093443,3.24410924,3105.5,3105.4,0.5896192]
[1738158093638,3.22009,3105.5,3105.4,0.55]
[1738158093890,3.22009,3105.5,3105.4,0.5896192]
[1738158094866,3.22009,3105.5,3105.4,0.0396192]
[1738158095074,4.02299,3105.5,3105.4,0.0396192]
[1738158095342,3.22026,3105.4,3105.0,0.55]
[1738158095992,3.22026,3105.4,3105.2,0.55]
[1738158096139,3.22009,3105.5,3105.2,0.55]
[1738158096344,3.21991,3105.7,3105.4,0.55]
[1738158096681,3.22001,3105.6,3105.5,0.03953363]
[1738158098281,3.24402924,3105.6,3105.5,0.03953363]
[1738158098583,3.2202,3105.4,3105.0,0.55]
[1738158099143,3.24432924,3105.3,3105.0,0.55]
[1738158099880,0.02401924,3105.3,3105.0,0.55]
[1738158100185,3.22044,3105.2,3104.7,0.8084]
[1738158100547,3.22044,3105.2,3104.8,0.55]
[1738158100952,3.2202,3105.4,3104.8,0.55]
[1738158101152,3.2202,3105.4,3104.8,3.7708]
[1738158101361,6.44048,3105.4,3104.8,4.550809]
[1738158101692,3.22032,3105.3,3104.8,4.550809]
[1738158102675,3.22019,3105.4,3105.0,0.55]
[1738158102863,3.22031,3105.3,3105.0,0.55]
[1738158103065,3.22031,3105.3,3104.9,0.55]
[1738158103878,3.22014,3105.5,3104.9,4.6286399]
[1738158104255,3.2202,3105.4,3104.9,4.6286399]
[1738158104456,3.22014,3105.5,3104.9,7.8492799]
[1738158104655,3.22014,3105.5,3104.9,4.6286399]
[1738158105096,3.22014,3105.5,3104.9,1.4079999]
[1738158105270,3.22014,3105.5,3104.9,0.55]
[1738158105455,3.22025,3105.4,3104.9,0.55]
[1738158106597,3.22014,3105.5,3104.8,0.55]
[1738158106896,6.44033,3105.5,3105.0,0.55]
[1738158107094,3.2202,3105.4,3105.0,0.55]
[1738158108115,0.8122,3105.8,3104.7,4.02925]
[1738158108257,0.64399711,3106.0,3104.5,0.0075]
[1738158108258,3.22078,3104.9,3104.5,0.8096]
[1738158108459,3.22095,3104.7,3104.5,0.8096]
[1738158108657,3.22095,3104.7,3104.2,0.8096]
[1738158108859,3.2212,3104.5,3104.2,0.8096]
[1738158109317,3.2212,3104.5,3104.3,0.55]
[1738158109487,3.22104,3104.6,3104.3,0.55]
[1738158110772,3.22104,3104.6,3104.5,0.55]
[1738158110968,3.22098,3104.7,3104.5,0.59039449]
[1738158111171,6.44198,3104.7,3104.5,0.59039449]
[1738158111355,3.22098,3104.7,3104.5,0.59039449]
[1738158111563,3.22102,3104.6,3104.5,0.59039449]
[1738158113545,3.22102,3104.6,3104.5,0.04039449]
[1738158113754,3.24503924,3104.6,3104.5,0.04039449]
[1738158113904,3.22122,3104.5,3104.3,0.55]
[1738158114099,3.22141,3104.3,3103.9,0.8253]
[1738158114303,3.22141,3104.3,3103.9,1.230767]
[1738158114541,3.22141,3104.3,3104.0,0.55]
[1738158115549,3.22123,3104.5,3104.0,0.55]
[1738158115753,3.22123,3104.4,3104.0,0.55]
[1738158116108,3.24524924,3104.4,3104.0,0.55]
[1738158116313,3.24540924,3104.3,3104.0,0.55]
[1738158116647,3.22154,3104.1,3104.0,0.55]
[1738158116946,3.2217,3104.0,3103.6,0.7725]
[1738158117148,3.22177,3103.9,3103.6,0.7725]
[1738158117355,3.22186,3103.8,3103.3,3.99484]
[1738158117506,3.22177,3103.9,3103.4,0.0075]
[1738158117846,3.24578924,3103.9,3103.4,0.5575]
[1738158118010,3.22188,3103.8,3103.3,0.7725]
[1738158118209,3.22177,3103.9,3103.3,3.99487]
[1738158118435,3.22177,3103.9,3103.4,0.55]
[1738158118905,3.22177,3103.9,3103.4,6.99446]
[1738158119143,3.22145,3104.2,3103.6,3.77199]
[1738158119945,3.22156,3104.1,3103.6,3.77199]
[1738158120130,0.64546904,3104.3,3103.5,0.55]
[1738158120131,3.24569924,3104.0,3103.5,0.55]
[1738158120305,3.24569924,3104.0,3103.3,3.99481]
[1738158120524,3.24571924,3104.0,3103.4,3.77227]
[1738158120710,3.2215,3104.2,3103.7,0.55]
[1738158120933,0.64546904,3104.3,3103.7,0.55]
[1738158121129,3.86681904,3104.3,3103.7,3.77194]
[1738158121503,3.86681904,3104.3,3103.8,3.22182]
[1738158122047,3.22135,3104.3,3103.8,3.22182]
[1738158122404,0.02401924,3104.3,3103.6,0.55]
[1738158122625,3.22165,3104.0,3103.6,0.55]
[1738158122829,3.22197,3103.7,3103.3,0.7725]
[1738158123161,3.22212,3103.6,3103.1,0.8255]
[1738158123367,0.02401924,3103.6,3103.1,0.8255]
[1738158123555,3.22197,3103.7,3103.2,3.22247]
[1738158123751,3.22197,3103.7,3103.2,0.55]
[1738158123953,3.22179,3103.9,3103.2,0.55]
[1738158124133,3.22179,3103.9,3103.4,0.55]
[1738158124326,3.22179,3103.9,3103.4,3.77222]
[1738158124527,0.7884,3104.0,3103.6,0.55]
[1738158124871,4.01009,3104.0,3103.6,0.55]
[1738158125052,0.7884,3104.0,3103.4,0.55]
[1738158125256,3.22195,3103.8,3103.4,0.55]
[1738158125432,3.22176,3103.9,3103.1,7.27052]
[1738158125632,3.22196,3103.7,3103.2,0.55]
[1738158125860,3.24597924,3103.7,3103.2,0.59257186]
[1738158126545,3.22185,3103.8,3103.4,0.55]
[1738158126774,3.22185,3103.8,3103.6,0.55]
[1738158127068,3.22185,3103.8,3103.7,0.04231842]
[1738158127423,3.22185,3103.8,3103.4,0.55]
[1738158127641,3.22185,3103.8,3103.7,0.04230342]
[1738158127836,3.22176,3103.9,3103.4,3.77224]
[1738158128042,3.22176,3103.9,3103.7,0.04230342]
[1738158128243,3.22176,3103.9,3103.4,0.55]
[1738158128469,3.22176,3103.9,3103.8,0.04218778]
[1738158128623,6.44359,3103.9,3103.4,0.55]
[1738158128826,3.22176,3103.9,3103.8,0.04218778]
[1738158129027,3.22176,3103.9,3103.4,0.55]
[1738158129225,3.22186,3103.8,3103.4,0.55]
[1738158130637,3.22197,3103.7,3103.2,0.58222127]
[1738158130842,3.22197,3103.7,3103.3,0.55]
[1738158131044,3.22197,3103.7,3103.2,0.55]
[1738158131375,3.22191,3103.8,3103.4,0.55]
[1738158131734,3.22185,3103.8,3103.2,3.77246]
[1738158131936,6.44379,3103.8,3103.2,3.77246]
[1738158132162,3.22198,3103.7,3103.2,3.77246]
[1738158132361,3.22185,3103.8,3103.2,3.77246]
[1738158132362,3.24607924,3103.6,3103.2,0.55]
[1738158132565,0.7651,3103.4,3102.8,0.7689]
[1738158132777,0.7651,3103.4,3102.5,0.7662]
[1738158132778,3.22263,3103.1,3102.5,0.7662]
[1738158132959,3.22264,3103.1,3102.5,7.21249]
[1738158133163,3.98743,3103.4,3102.8,0.55]
[1738158133480,3.22208,3103.6,3103.0,1.3087]
[1738158133786,3.22189,3103.8,3103.2,0.55]
[1738158133970,3.22189,3103.8,3103.4,0.55]
[1738158134939,0.02401924,3103.7,3103.2,0.55]
[1738158135164,3.24604924,3103.7,3103.2,0.55]
[1738158135383,0.02401924,3103.7,3103.0,0.7587]
[1738158135555,3.22213,3103.6,3103.0,3.98131]
[1738158135751,3.22188,3103.8,3103.1,6.71989899]
[1738158135954,3.22174,3104.0,3103.5,0.55]
[1738158136185,3.2218,3103.9,3103.5,0.55]
[1738158136479,3.22185,3103.8,3103.3,0.55]
[1738158137386,3.22197,3103.7,3103.3,0.55]
[1738158137786,3.22175,3103.9,3103.2,0.55]
[1738158138094,3.22185,3103.8,3103.4,0.55]
[1738158138689,3.22175,3103.9,3103.4,0.55]
[1738158140065,3.22175,3103.9,3103.4,3.77217]
[1738158140279,3.22175,3103.9,3103.6,0.55]
[1738158140560,3.22175,3103.9,3103.7,0.04081378]
[1738158140784,3.22159,3104.1,3103.8,0.55]
[1738158140974,3.22134,3104.3,3103.9,0.04071242]
[1738158141302,6.44274,3104.3,3104.0,0.55]
[1738158141608,3.22151,3104.2,3104.0,0.59066175]
[1738158141817,0.02401924,3104.2,3104.0,0.59066175]
[1738158141966,3.22154,3104.1,3104.0,0.59066175]
[1738158142991,3.22154,3104.1,3104.0,0.04066175]
[1738158143381,3.22154,3104.1,3103.6,3.77203]
[1738158143879,3.22154,3104.1,3103.8,0.55]
[1738158144314,3.22155,3104.1,3103.9,0.04066249]
[1738158144602,3.22144,3104.2,3104.0,0.55]
[1738158145008,3.22144,3104.2,3104.1,0.04056115]
[1738158145611,3.22144,3104.2,3104.1,0.59056115]
[1738158146506,3.24545924,3104.2,3104.1,0.59056115]
[1738158147113,3.24545924,3104.2,3104.1,0.04056115]
[1738158147309,3.22161,3104.1,3103.5,0.7895]
[1738158147480,3.22161,3104.1,3103.6,3.77204]
[1738158148669,3.22142,3104.3,3103.8,0.55]
[1738158149218,3.22156,3104.1,3103.7,0.55]
[1738158149363,3.2217,3104.0,3103.5,4.01165]
[1738158149766,0.02401924,3104.2,3103.5,4.01165]
[1738158149767,3.22148,3104.2,3103.6,0.55]
[1738158149994,6.44299,3104.2,3103.6,3.77201]
[1738158150614,3.22148,3104.2,3103.6,3.77201]
[1738158150784,3.22165,3104.0,3103.6,3.77201]
[1738158151111,6.44302,3104.2,3103.6,3.77201]
[1738158151611,3.22148,3104.2,3103.6,3.77201]
[1738158151923,3.22156,3104.1,3103.6,3.72201]
[1738158152208,3.22154,3104.1,3103.6,3.72201]
[1738158152416,3.22164,3104.0,3103.6,0.5]
[1738158152625,3.22185,3103.8,3103.1,3.22258]
[1738158152831,3.22233,3103.4,3103.0,0.7693]
[1738158152972,3.22254,3103.2,3102.8,0.7741]
[1738158153213,3.22254,3103.2,3102.5,3.22314]
[1738158153214,3.22275,3103.0,3102.5,3.22314]
[1738158153413,0.02401924,3103.1,3102.3,4.91518415]
[1738158153611,3.2231,3102.7,3102.2,0.7741]
[1738158153837,3.2231,3102.6,3102.2,0.7741]
[1738158154040,3.22301,3102.7,3102.2,0.7741]
[1738158154239,3.22301,3102.7,3102.3,0.55]
[1738158154447,6.44609,3102.7,3102.3,0.55]
[1738158154621,3.22301,3102.7,3102.3,0.55]
[1738158154825,3.22301,3102.7,3102.2,0.7741]
[1738158154826,3.22316,3102.6,3102.2,0.7741]
[1738158155006,3.22301,3102.7,3102.2,0.7741]
[1738158155213,3.22301,3102.7,3102.2,0.7241]
[1738158155754,3.22296,3102.8,3102.3,0.59141881]
[1738158156551,3.22296,3102.8,3102.3,3.81480881]
[1738158157007,3.22296,3102.8,3102.3,0.59141881]
[1738158157154,3.24697924,3102.8,3102.3,3.81481881]
[1738158157341,3.22269,3103.0,3102.5,0.55]
[1738158157540,3.22292,3102.8,3102.3,3.26480881]
[1738158157853,3.22292,3102.8,3102.3,3.22339]
[1738158158018,3.22292,3102.8,3102.4,0.59136808]
[1738158158758,3.2232,3102.5,3102.4,0.04136808]
[1738158159130,0.02401924,3102.5,3101.7,0.825]
[1738158159616,3.22369,3102.1,3101.5,4.00849]
[1738158159959,3.22369,3102.1,3101.6,0.55]
[1738158160269,3.22369,3102.1,3101.6,3.81683289]
[1738158160970,3.22369,3102.1,3101.6,0.59270289]
[1738158161332,6.44697,3102.3,3101.6,3.81677289]
[1738158161543,3.22347,3102.3,3101.8,0.55]
[1738158162001,3.2231,3102.6,3102.1,0.55]
[1738158162138,3.24722924,3102.5,3102.1,0.55]
[1738158162339,3.22341,3102.3,3102.2,0.04239845]
[1738158162674,3.2236,3102.2,3101.8,0.7746]
[1738158163176,3.22341,3102.3,3101.8,0.7746]
[1738158163177,3.22341,3102.3,3101.9,0.55]
[1738158164636,0.02401924,3102.2,3101.9,0.55]
[1738158164836,3.24753924,3102.2,3101.9,0.55]
[1738158165369,0.02401924,3102.2,3101.5,0.7794]
[1738158165575,3.22389,3101.9,3101.5,0.7794]
[1738158165787,3.22389,3101.9,3101.6,0.55]
[1738158166750,3.22362,3102.1,3101.6,0.55]
[1738158167283,3.22373,3102.0,3101.6,0.55]
[1738158167473,3.22362,3102.1,3101.6,0.55]
[1738158167785,3.22384,3101.9,3101.6,0.55]
[1738158168085,6.44732,3102.1,3101.6,0.55]
[1738158168270,0.64591248,3102.3,3101.2,3.0]
[1738158168271,3.22412,3101.7,3101.2,0.7681]
[1738158168471,3.22412,3101.7,3101.3,0.55]
[1738158168472,3.22417,3101.6,3101.3,0.55]
[1738158168783,0.02401924,3101.5,3101.3,0.55]
[1738158168983,3.2243,3101.5,3100.9,3.9929]
[1738158169391,3.22446,3101.3,3100.9,0.7681]
[1738158169691,3.22466,3101.1,3100.6,7.20724]
[1738158169861,3.22466,3101.1,3100.6,3.98212]
[1738158170063,0.02401924,3101.1,3100.6,0.757]
[1738158170395,6.44947,3101.1,3100.6,0.757]
[1738158170892,6.44947,3101.1,3100.7,0.0436095]
[1738158170893,3.22493,3100.9,3100.7,0.0436095]
[1738158171057,0.02401924,3100.8,3100.7,0.5936095]
[1738158171257,3.22493,3100.9,3100.7,0.5936095]
[1738158171462,3.98292,3101.1,3100.7,0.5936095]
[1738158172550,3.22478,3101.0,3100.7,0.5936095]
[1738158172733,3.98292,3101.1,3100.7,0.5936095]
[1738158172928,7.20767,3101.1,3100.7,0.5936095]
[1738158173235,3.22472,3101.1,3100.7,0.5936095]
[1738158173941,6.44947,3101.1,3100.7,0.5936095]
[1738158174127,3.22478,3101.0,3100.7,0.5936095]
[1738158174537,3.22472,3101.1,3100.7,0.5936095]
[1738158174717,3.24873924,3101.1,3100.7,0.5936095]
[1738158175129,6.47348924,3101.1,3100.7,0.5936095]
[1738158175455,3.2245,3101.3,3100.8,0.55]
[1738158175747,3.24852924,3101.3,3101.0,0.55]
[1738158176246,3.24852924,3101.3,3101.1,0.04340641]
[1738158178054,3.22455,3101.2,3101.1,0.04340641]
[1738158178918,4.04275,3101.4,3101.1,0.04340641]
[1738158178919,3.22445,3101.4,3101.1,0.04340641]
[1738158179324,3.22447,3101.3,3101.1,0.04340641]
[1738158179743,0.02401924,3101.3,3101.1,0.04340641]
[1738158179958,3.22455,3101.2,3101.1,0.04340641]
[1738158180833,3.22455,3101.2,3100.7,0.55]
[1738158181032,3.22455,3101.2,3101.1,0.04340641]
[1738158181220,3.22469,3101.1,3100.7,0.55]
[1738158181422,0.64764055,3101.6,3100.7,0.55]
[1738158181720,0.7643,3102.0,3101.2,0.55]
[1738158181914,1.41787747,3102.0,3101.4,0.55]
[1738158182121,3.22424,3101.5,3101.4,0.55]
[1738158182320,3.22424,3101.5,3100.7,3.678232]
[1738158182321,3.22459,3101.2,3100.9,0.7878]
[1738158182870,3.22448,3101.3,3100.9,0.7878]
[1738158183032,3.2244,3101.4,3101.0,0.55]
[1738158183388,6.44839,3101.6,3101.0,3.77475]
[1738158183537,4.01865,3101.9,3101.0,0.55]
[1738158183737,3.22448,3101.3,3101.0,0.55]
[1738158184053,3.22427,3101.5,3101.0,3.77472]
[1738158184417,3.22427,3101.5,3101.0,0.55]
[1738158185024,3.22427,3101.5,3101.0,3.77472]
[1738158185338,0.7948,3101.9,3100.6,0.03224564]
[1738158185339,3.22389,3101.9,3101.4,0.55]
[1738158185533,3.22393,3101.8,3101.4,0.55]
[1738158185738,3.24805924,3101.7,3101.2,0.55]
[1738158185918,3.24805924,3101.7,3101.6,0.55]
[1738158186140,6.44777,3101.9,3101.6,0.55]
[1738158186318,3.22383,3101.9,3101.6,0.04429734]
[1738158186525,3.22383,3101.9,3101.4,0.55]
[1738158186864,3.22383,3101.9,3101.7,0.04412158]
[1738158187200,3.22383,3101.9,3101.4,0.55]
[1738158187360,3.22383,3101.9,3101.8,0.04406584]
[1738158187559,3.22383,3101.9,3101.4,0.55]
[1738158187763,3.22383,3101.9,3101.8,0.04406584]
[1738158187964,3.22352,3102.2,3101.9,0.55]
[1738158188343,3.22352,3102.2,3102.0,0.04392436]
[1738158188532,3.22331,3102.4,3102.0,0.04392436]
[1738158188738,6.4467,3102.4,3102.0,0.83432436]
[1738158188944,3.22331,3102.4,3102.0,0.83432436]
[1738158189159,3.22358,3102.2,3102.0,0.04392436]
[1738158189362,3.24763924,3102.1,3102.0,0.59392436]
[1738158189569,3.22362,3102.1,3102.0,0.59392436]
[1738158190070,3.22362,3102.1,3102.0,0.55]
[1738158190229,3.22362,3102.1,3102.0,0.59374938]
[1738158190725,3.22362,3102.1,3102.0,0.04374938]
[1738158191012,3.22372,3102.0,3101.0,0.8084]
[1738158191173,0.814,3101.6,3101.0,0.8084]
[1738158191387,3.22458,3101.2,3101.1,0.04419615]
[1738158192295,6.44879,3101.4,3101.1,0.04419615]
[1738158193006,3.22435,3101.4,3101.1,0.04419615]
[1738158194066,3.22455,3101.2,3101.1,0.04419615]
[1738158194306,3.22455,3101.2,3100.8,0.55]
[1738158194463,0.02401924,3101.1,3100.8,0.55]
[1738158194809,0.02401924,3101.1,3100.4,4.03883]
[1738158195009,3.22455,3101.2,3100.7,3.22505]
[1738158195305,3.22455,3101.2,3100.7,0.55]
[1738158195511,3.22449,3101.3,3100.8,3.22496]
[1738158195810,3.22457,3101.2,3100.7,0.55]
[1738158195977,3.24874924,3101.1,3100.7,0.55]